Workbook

Sheet Sheet1
A1: MMF | D1: PM Checks
A3: "X"
A5: Undulator | B5: 17
A6: Date: | B6: 2011-11-21
A7: Crew: | B7: HI,MR
A9: BUCK IN
A10: Far Value | B10: 0 | C10: PM1 X1
A11: Near Value | B11: 0 | C11: PM 4 X1
A12: 1st Far | B12: 32
A13: 1st. Near | B13: 31.38
A14: 2nd. Far | B14: 28
A15: 2nd Near | B15: 30.214
A16: Far Should Read | B16: =BuckIn(B10,B11,B12,B13,B14,B15) -> 31.12491179
A17: Near Should Read | B17: 31.12491179
A18: LOS | B18: 31.12491179
A20: Undulator
A23: 1) | B23: 2) | C23: 3) | D23: 4)
A24: 36.611 | B24: 36.616 | C24: 36.614 | D24: 36.614
A25: 1 | B25: 1 | C25: 1 | D25: 1
A26: =SUM(A24:A25) -> 37.611 | B26: =SUM(B24:B25) -> 37.616 | C26: =SUM(C24:C25) -> 37.614 | D26: =SUM(D24:D25) -> 37.614
A27: =B18 -> 31.12491179 | B27: =B18 -> 31.12491179 | C27: =B18 -> 31.12491179 | D27: =B18 -> 31.12491179
A28: =SUM(A27-A26) -> -6.486088215 | B28: =SUM(B27-B26) -> -6.491088215 | C28: =SUM(C27-C26) -> -6.489088215 | D28: =SUM(D27-D26) -> -6.489088215
A30: 5) | B30: 6) | C30: 7) | D30: 8)
A31: 26.824 | B31: 26.829 | C31: 26.837 | D31: 26.828
A32: 1 | B32: 1 | C32: 1 | D32: 1
A33: =SUM(A31:A32) -> 27.824 | B33: =SUM(B31:B32) -> 27.829 | C33: =SUM(C31:C32) -> 27.837 | D33: =SUM(D31:D32) -> 27.828
A34: =B18 -> 31.12491179 | B34: =B18 -> 31.12491179 | C34: =B18 -> 31.12491179 | D34: =B18 -> 31.12491179
A35: =SUM(A34-A33) -> 3.300911785 | B35: =SUM(B34-B33) -> 3.295911785 | C35: =SUM(C34-C33) -> 3.287911785 | D35: =SUM(D34-D33) -> 3.296911785
B38: Reference | C38: Block
A40: A) | B40: B) | C40: C) | D40: D)
A41: 38.159 | B41: 33.63 | C41: 31.863 | D41: 31.863
A42: 1 | B42: 1 | C42: 1 | D42: 1
A43: =SUM(A41:A42) -> 39.159 | B43: =SUM(B41:B42) -> 34.63 | C43: =SUM(C41:C42) -> 32.863 | D43: =SUM(D41:D42) -> 32.863
A44: =B18 -> 31.12491179 | B44: =B18 -> 31.12491179 | C44: =B18 -> 31.12491179 | D44: =B18 -> 31.12491179
A45: =SUM(A44-A43) -> -8.034088215 | B45: =SUM(B44-B43) -> -3.505088215 | C45: =SUM(C44-C43) -> -1.738088215 | D45: =SUM(D44-D43) -> -1.738088215
A51: MMF | D51: PM Checks
A53: "X"
A55: =B18 -> 31.12491179 | B55: LOS
A56: Undulator | B56: =B5 -> 17
A57: Date: | B57: =B6 -> 2011-11-21
A58: Crew: | B58: =B7 -> HI,MR
B61: PM4
A63: X1) Buck In | B63: Y1) | C63: Y2)
B64: 34.723 | C64: 34.726
B65: 1 | C65: 1
B66: =SUM(B64:B65) -> 35.723 | C66: =SUM(C64:C65) -> 35.726
B67: =B18 -> 31.12491179 | C67: =B18 -> 31.12491179
A68: 0 | B68: =SUM(B67-B66) -> -4.598088215 | C68: =SUM(C67-C66) -> -4.601088215
B71: PM3
A73: X1) | B73: Y1) | C73: Y2)
A74: 33.002 | B74: 36.595 | C74: 36.598
A75: 1 | B75: 1 | C75: 1
A76: =SUM(A74:A75) -> 34.002 | B76: =SUM(B74:B75) -> 37.595 | C76: =SUM(C74:C75) -> 37.598
A77: =B18 -> 31.12491179 | B77: =B18 -> 31.12491179 | C77: =B18 -> 31.12491179
A78: =SUM(A77-A76) -> -2.877088215 | B78: =SUM(B77-B76) -> -6.470088215 | C78: =SUM(C77-C76) -> -6.473088215
B81: PM 2
A82: X1) | B82: Y1) | C82: Y2)
A83: 33.003 | B83: 36.604 | C83: 36.604
A84: 1 | B84: 1 | C84: 1
A85: =SUM(A83:A84) -> 34.003 | B85: =SUM(B83:B84) -> 37.604 | C85: =SUM(C83:C84) -> 37.604
A86: =B18 -> 31.12491179 | B86: =B18 -> 31.12491179 | C86: =B18 -> 31.12491179
A87: =SUM(A86-A85) -> -2.878088215 | B87: =SUM(B86-B85) -> -6.479088215 | C87: =SUM(C86-C85) -> -6.479088215
B90: PM1
A91: X1) Buck In | B91: Y1) | C91: Y2)
B92: 34.728 | C92: 34.72
B93: 1 | C93: 1
B94: =SUM(B92:B93) -> 35.728 | C94: =SUM(C92:C93) -> 35.72
B95: =B18 -> 31.12491179 | C95: =B18 -> 31.12491179
A96: 0 | B96: =SUM(B95-B94) -> -4.603088215 | C96: =SUM(C95-C94) -> -4.595088215
A101: MMF | D101: PM Checks
A103: "Y" | C103: PM4Y1 | D103: PM1Y1
C104: 5.667 | D104: 5.667
C105: 1 | D105: 1
A106: Undulator | B106: =B5 -> 17 | C106: =SUM(C104+C105) -> 6.667 | D106: =SUM(D104+D105) -> 6.667
A107: Date: | B107: =B6 -> 2011-11-21
A108: Crew: | B108: =B7 -> HI,MR
C109: HI = | D109: =AVERAGE(C106,D106) -> 6.667
A111: PM4 | C111: PM3
A113: Y1) | B113: X1) | C113: Y2) | D113: X1
A114: =C104 -> 5.667 | B114: 9.272 | C114: 5.67 | D114: 9.27
A115: 1 | B115: 1 | C115: 1 | D115: 1
A116: =SUM(A114:A115) -> 6.667 | B116: =SUM(B114:B115) -> 10.272 | C116: =SUM(C114:C115) -> 6.67 | D116: =SUM(D114:D115) -> 10.27
A117: =D109 -> 6.667 | B117: =D109 -> 6.667 | C117: =D109 -> 6.667 | D117: =D109 -> 6.667
A118: =SUM(A117-A116) -> 0 | B118: =SUM(B117-B116) -> -3.605 | C118: =SUM(C117-C116) -> -0.003 | D118: =SUM(D117-D116) -> -3.603
A121: PM2 | C121: PM1
A123: Y1) | B123: X1) | C123: Y1) | D123: X1)
A124: 5.675 | B124: 9.273 | C124: =D104 -> 5.667 | D124: 9.269
A125: 1 | B125: 1 | C125: 1 | D125: 1
A126: =SUM(A124:A125) -> 6.675 | B126: =SUM(B124:B125) -> 10.273 | C126: =SUM(C124:C125) -> 6.667 | D126: =SUM(D124:D125) -> 10.269
A127: =D109 -> 6.667 | B127: =D109 -> 6.667 | C127: =D109 -> 6.667 | D127: =D109 -> 6.667
A128: =SUM(A127-A126) -> -0.008 | B128: =SUM(B127-B126) -> -3.606 | C128: =SUM(C127-C126) -> 0 | D128: =SUM(D127-D126) -> -3.602
A135: Top Of Gage Block | C135: Probe Location in (X)
A137: 11.069 | C137: -5.464 | D137: LOS
A138: =D109 -> 6.667 | C138: 0.045 | D138: Mic To Plus Edge
A139: =SUM(A138-A137) -> -4.402 | C139: =SUM(C137+C138) -> -5.419
C140: -0.039
C141: =(C139+C140) -> -5.458 | D141: Probe Location
A151: MMF | D151: PM Checks
A153: "Y"
A155: Undulator | B155: =B5 -> 17
A156: Date: | B156: =B6 -> 2011-11-21
A157: Crew: | B157: =B7 -> HI,MR
A160: HI = | B160: =D109 -> 6.667
A162: Undulator
A164: 1) | B164: 2) | C164: 3) | D164: 4)
A165: 2.164 | B165: 2.186 | C165: 2.185 | D165: 2.176
A166: 1 | B166: 1 | C166: 1 | D166: 1
A167: =SUM(A165:A166) -> 3.164 | B167: =SUM(B165:B166) -> 3.186 | C167: =SUM(C165:C166) -> 3.185 | D167: =SUM(D165:D166) -> 3.176
A168: =D109 -> 6.667 | B168: =D109 -> 6.667 | C168: =D109 -> 6.667 | D168: =D109 -> 6.667
A169: =SUM(A168-A167) -> 3.503 | B169: =SUM(B168-B167) -> 3.481 | C169: =SUM(C168-C167) -> 3.482 | D169: =SUM(D168-D167) -> 3.491
A172: 5) | B172: 6) | C172: 7) | D172: 8)
A173: 9.266 | B173: 9.27 | C173: 9.272 | D173: 9.276
A174: 1 | B174: 1 | C174: 1 | D174: 1
A175: =SUM(A173+A174) -> 10.266 | B175: =SUM(B173+B174) -> 10.27 | C175: =SUM(C173+C174) -> 10.272 | D175: =SUM(D173+D174) -> 10.276
A176: =D109 -> 6.667 | B176: =D109 -> 6.667 | C176: =D109 -> 6.667 | D176: =D109 -> 6.667
A177: =SUM(A176-A175) -> -3.599 | B177: =SUM(B176-B175) -> -3.603 | C177: =SUM(C176-C175) -> -3.605 | D177: =SUM(D176-D175) -> -3.609
A181: Reference Block
A183: A) | B183: B) | C183: C) | D183: D)
A184: 5.892 | C184: 8.051 | D184: 11.134
A185: 1 | C185: 1 | D185: 1
A186: =SUM(A184+A185) -> 6.892 | C186: =SUM(C184+C185) -> 9.051 | D186: =SUM(D184+D185) -> 12.134
A187: =D109 -> 6.667 | C187: =D109 -> 6.667 | D187: =D109 -> 6.667
A188: =SUM(A187-A186) -> -0.225 | B188: 0 | C188: =SUM(C187-C186) -> -2.384 | D188: =SUM(D187-D186) -> -5.467
A191: Flats
A193: U/S | C193: D/S
A194: (+) | B194: (-) | C194: (+) | D194: (-)
A195: 4.949 | B195: 4.952 | C195: 4.953 | D195: 4.956
A196: =D109 -> 6.667 | B196: =D109 -> 6.667 | C196: =D109 -> 6.667 | D196: =D109 -> 6.667
A197: =SUM(A196-A195) -> 1.718 | B197: =SUM(B196-B195) -> 1.715 | C197: =SUM(C196-C195) -> 1.714 | D197: =SUM(D196-D195) -> 1.711

Sheet Sheet2
A2: Undulator | C2: =Sheet1!B5 -> 17
A3: Date | C3: =Sheet1!B6 -> 2011-11-21
A4: Crew | C4: =Sheet1!B7 -> HI,MR
A7: Undulator Values
A9: TB | B9: Y (in) | C9: Y (mm) | F9: TB | G9: X (in) | H9: X (mm)
A10: 1 | B10: =Sheet1!A169 -> 3.503 | C10: =B10*25.4 -> 88.9762 | F10: 5 | G10: =Sheet1!A35 -> 3.300911785 | H10: =G10*25.4 -> 83.84315935
A11: 2 | B11: =Sheet1!B169 -> 3.481 | C11: =B11*25.4 -> 88.4174 | F11: 6 | G11: =Sheet1!B35 -> 3.295911785 | H11: =G11*25.4 -> 83.71615935
A12: 3 | B12: =Sheet1!C169 -> 3.482 | C12: =B12*25.4 -> 88.4428 | F12: 7 | G12: =Sheet1!C35 -> 3.287911785 | H12: =G12*25.4 -> 83.51295935
A13: 4 | B13: =Sheet1!D169 -> 3.491 | C13: =B13*25.4 -> 88.6714 | F13: 8 | G13: =Sheet1!D35 -> 3.296911785 | H13: =G13*25.4 -> 83.74155935
A16: PM Values
C18: Upstream | E18: (PM 3) | G18: Checks
A19: TB | B19: X (in) | C19: Y (in) | D19: X (mm) | E19: Y (mm) | G19: X (mm) | H19: Y (mm)
A20: Y2 | B20: =Sheet1!C78 -> -6.473088215 | C20: =Sheet1!C118 -> -0.003 | D20: =B20*25.4 -> -164.4164406 | E20: =C20*25.4 -> -0.0762 | G20: =H10-D21 -> 131.5212 | H20: =C10-E20 -> 89.0524
A21: X1 | B21: =Sheet1!A78+1 -> -1.877088215 | C21: =Sheet1!D118 -> -3.603 | D21: =B21*25.4 -> -47.67804065 | E21: =C21*25.4 -> -91.5162
A22: Y1 | B22: =Sheet1!B78 -> -6.470088215 | D22: =B22*25.4 -> -164.3402406
C24: Downstream | E24: (PM 2) | G24: Checks
A25: TB | B25: X (in) | C25: Y (in) | D25: X (mm) | E25: Y (mm) | G25: X (mm) | H25: Y (mm)
A26: Y1 | B26: =Sheet1!B87 -> -6.479088215 | C26: =Sheet1!A128 -> -0.008 | D26: =B26*25.4 -> -164.5688406 | E26: =C26*25.4 -> -0.2032 | G26: =H13-D27 -> 131.445 | H26: =C13-E26 -> 88.8746
A27: X1 | B27: =Sheet1!A87+1 -> -1.878088215 | C27: =Sheet1!B128 -> -3.606 | D27: =B27*25.4 -> -47.70344065 | E27: =C27*25.4 -> -91.5924
A28: Y2 | B28: =Sheet1!C87 -> -6.479088215 | C28: \ | D28: =B28*25.4 -> -164.5688406
B33: Probe | F33: Flats
B35: X (in) | C35: X (mm) | F35: Y(in) | G35: Y(mm)
B36: =Sheet1!C141 -> -5.458 | C36: =B36*25.4 -> -138.6332 | E36: US + | F36: =Sheet1!A197 -> 1.718 | G36: =F36*25.4 -> 43.6372
E37: US - | F37: =Sheet1!B197 -> 1.715 | G37: =F37*25.4 -> 43.561
E38: DS + | F38: =Sheet1!C197 -> 1.714 | G38: =F38*25.4 -> 43.5356
C39: Top of Gage Block | E39: DS - | F39: =Sheet1!D197 -> 1.711 | G39: =F39*25.4 -> 43.4594
B41: Y (in) | C41: Y (mm)
B42: =Sheet1!A139 -> -4.402 | C42: =B42*25.4 -> -111.8108

Sheet Sheet3
A2: Undulator | C2: 13
A3: Date | C3: =Sheet1!B6 -> 2011-11-21
A4: Crew | C4: MR,BR
C7: Undulator Values
A9: TB | B9: X (in) | C9: Y (in) | D9: X (mm) | E9: Y (mm) | G9: Probe
A10: 1 | B10: =Sheet1!A28 -> -6.486088215 | C10: =Sheet1!A169 -> 3.503 | D10: =SUM(B10*25.4) -> -164.7466406 | E10: =SUM(C10*25.4) -> 88.9762
A11: 2 | B11: =Sheet1!B28 -> -6.491088215 | C11: =Sheet1!B169 -> 3.481 | D11: =SUM(B11*25.4) -> -164.8736406 | E11: =SUM(C11*25.4) -> 88.4174 | G11: X (in) | H11: X (mm)
A12: 3 | B12: =Sheet1!C28 -> -6.489088215 | C12: =Sheet1!C169 -> 3.482 | D12: -164.8228406 | E12: 88.4428 | G12: =Sheet1!C141 -> -5.458 | H12: =SUM(G12*25.4) -> -138.6332
A13: 4 | B13: =Sheet1!D28 -> -6.489088215 | C13: =Sheet1!D169 -> 3.491 | D13: -164.8228406 | E13: 88.6714
A14: 5 | B14: =Sheet1!A35 -> 3.300911785 | C14: =Sheet1!A177 -> -3.599 | D14: 83.84315935 | E14: -91.4146
A15: 6 | B15: =Sheet1!B35 -> 3.295911785 | C15: =Sheet1!B177 -> -3.603 | D15: 83.71615935 | E15: -91.5162 | G15: Top of Gage Block
A16: 7 | B16: =Sheet1!C35 -> 3.287911785 | C16: =Sheet1!C177 -> -3.605 | D16: 83.51295935 | E16: -91.567
A17: 8 | B17: =Sheet1!D35 -> 3.296911785 | C17: =Sheet1!D177 -> -3.609 | D17: 83.74155935 | E17: -91.6686 | G17: Y (in) | H17: Y (mm)
G18: =Sheet1!A139 -> -4.402 | H18: =SUM(G18*25.4) -> -111.8108
C19: Undulator PM Values
C21: Upstream | E21: (PM 3)
A22: TB | B22: X (in) | C22: Y (in) | D22: X (mm) | E22: Y (mm) | G22: Flats
A23: Y2 | B23: =Sheet1!A78 -> -2.877088215 | C23: =Sheet1!C118 -> -0.003 | D23: =SUM(B23*25.4) -> -73.07804065 | E23: =SUM(C23*25.4) -> -0.0762
A24: X1 | B24: =Sheet1!A78 -> -2.877088215 | C24: =Sheet1!D118 -> -3.603 | D24: =SUM(B24*25.4) -> -73.07804065 | E24: =SUM(C24*25.4) -> -91.5162 | H24: Y(in) | I24: Y(mm)
A25: Y1 | B25: =Sheet1!B78 -> -6.470088215 | D25: =SUM(B25*25.4) -> -164.3402406 | G25: US + | H25: =Sheet1!A197 -> 1.718 | I25: =SUM(H25*25.4) -> 43.6372
G26: US - | H26: =Sheet1!B197 -> 1.715 | I26: =SUM(H26*25.4) -> 43.561
C27: Downstream | E27: (PM 2) | G27: DS + | H27: =Sheet1!C197 -> 1.714 | I27: =SUM(H27*25.4) -> 43.5356
A28: TB | B28: X (in) | C28: Y (in) | D28: X (mm) | E28: Y (mm) | G28: DS - | H28: =Sheet1!D197 -> 1.711 | I28: =SUM(H28*25.4) -> 43.4594
A29: Y1 | B29: =Sheet1!B87 -> -6.479088215 | C29: =Sheet1!A128 -> -0.008 | D29: =SUM(B29*25.4) -> -164.5688406 | E29: =SUM(C29*25.4) -> -0.2032
A30: X1 | B30: =Sheet1!A87 -> -2.878088215 | C30: =Sheet1!B128 -> -3.606 | D30: =SUM(B30*25.4) -> -73.10344065 | E30: =SUM(C30*25.4) -> -91.5924
A31: Y2 | B31: =Sheet1!C87 -> -6.479088215 | D31: =SUM(B31*25.4) -> -164.5688406
C33: Ref. PM Values
C35: Upstream | E35: (PM 4)
A36: TB | B36: X (in) | C36: Y (in) | D36: X (mm) | E36: Y (mm)
A37: Y1 | B37: =Sheet1!B68 -> -4.598088215 | C37: =Sheet1!A118 -> 0 | D37: =SUM(B37*25.4) -> -116.7914406 | E37: =SUM(C37*25.4) -> 0
A38: X1 | B38: 0 | C38: =Sheet1!B118 -> -3.605 | D38: 0 | E38: =SUM(C38*25.4) -> -91.567
A39: Y2 | B39: =Sheet1!C68 -> -4.601088215 | D39: =SUM(B39*25.4) -> -116.8676406
C41: Downstream | E41: (PM 1)
A42: TB | B42: X (in) | C42: Y (in) | D42: X (mm) | E42: Y (mm)
A43: Y1 | B43: =Sheet1!B96 -> -4.603088215 | C43: =Sheet1!C128 -> 0 | D43: =SUM(B43*25.4) -> -116.9184406 | E43: =SUM(C43*25.4) -> 0
A44: X1 | B44: 0 | C44: =Sheet1!D128 -> -3.602 | D44: 0 | E44: =SUM(C44*25.4) -> -91.4908
A45: Y2 | B45: =Sheet1!C96 -> -4.595088215 | D45: =SUM(B45*25.4) -> -116.7152406
C47: Ref. Block
A48: TB | B48: X (in) | C48: Y (in) | D48: X (mm) | E48: Y (mm)
A49: A | B49: =Sheet1!A45 -> -8.034088215 | C49: =Sheet1!A188 -> -0.225 | D49: =SUM(B49*25.4) -> -204.0658406 | E49: =SUM(C49*25.4) -> -5.715
A50: B | B50: =Sheet1!B45 -> -3.505088215 | D50: =SUM(B50*25.4) -> -89.02924065
A51: C | B51: =Sheet1!C45 -> -1.738088215 | C51: =Sheet1!C188 -> -2.384 | D51: =SUM(B51*25.4) -> -44.14744065 | E51: =SUM(C51*25.4) -> -60.5536
A52: D | B52: =Sheet1!D45 -> -1.738088215 | C52: =Sheet1!D188 -> -5.467 | D52: =SUM(B52*25.4) -> -44.14744065 | E52: =SUM(C52*25.4) -> -138.8618
